[Event "RUS-ch Men Rapid 2019"]
[Site "Sochi"]
[Date "2019.10.16"]
[Round "9.18"]
[White "Mnatsakanian, Arsen"]
[Black "Papin, Vasily"]
[Result "0-1"]
[ECO "B23"]
[WhiteElo "2138"]
[BlackElo "2481"]
[Annotator "ChessBase"]
[PlyCount "90"]
[EventDate "2019.10.15"]
[EventType "swiss"]
[EventCountry "RUS"]
[SourceTitle "playchess.com"]
[Source "ChessBase"]
[SourceQuality "1"]
[TimeControl "900+10"]

1. e4 {[%emt 0:00:00]} c5 {[%emt 0:00:16]} 2. Nc3 {[%emt 0:00:00]} a6 {[%emt 0:00:01]} 3. g3 {[%emt 0:00:23]} b5 {[%emt 0:00:01]} 4. Bg2 {[%emt 0:00:01]} Bb7 {[%emt 0:00:01]} 5. d3 {[%emt 0:00:01]} e6 {[%emt 0:00:04]} 6. f4 {[%emt 0:00:10]} d5 {[%emt 0:00:07]} 7. e5 {[%emt 0:00:16]} h5 {[%emt 0:00:02]} 8. h3 {[%emt 0:00:04]} g6 {[%emt 0:00:19]} 9. Nf3 {[%emt 0:00:09]} Nh6 {[%emt 0:00:02]} 10. O-O {[%emt 0:00:15]} Nf5 {[%emt 0:00:08]} 11. Ne2 {[%emt 0:00:01]} Nc6 {[%emt 0:00:27]} 12. c3 {[%emt 0:00:38]} d4 {[%emt 0:00:18]} 13. Ng5 {[%emt 0:00:20]} Qb6 {[%emt 0:01:19]} 14. Kh2 {[%emt 0:01:02]} Be7 {[%emt 0:00:10]} 15. Ne4 {[%emt 0:00:07]} O-O-O {[%emt 0:00:48]} 16. a4 {[%emt 0:00:34]} c4 {[%emt 0:00:32]} 17. axb5 {[%emt 0:00:18]} axb5 {[%emt 0:00:12]} 18. dxc4 {[%emt 0:01:18]} d3 {[%emt 0:00:20]} 19. cxb5 {[%emt 0:00:17]} dxe2 {[%emt 0:00:59]} 20. Qxe2 {[%emt 0:00:02]} Na7 {[%emt 0:00:29]} 21. b4 {[%emt 0:03:42]} Nxb5 {[%emt 0:01:14]} 22. Ra5 {[%emt 0:02:00]} Nc7 {[%emt 0:00:09]} 23. Qa2 {[%emt 0:02:35]} Ne3 {[%emt 0:01:28]} 24. Bxe3 {[%emt 0:00:19]} Qxe3 {[%emt 0:00:01]} 25. Nd6+ {[%emt 0:00:38]} Bxd6 {[%emt 0:00:07]} 26. Bxb7+ {[%emt 0:00:05]} Kxb7 {[%emt 0:00:05]} 27. Qg2+ {[%emt 0:00:24]} Kb8 {[%emt 0:04:57]} 28. Kh1 {[%emt 0:03:30]} Bxe5 {[%emt 0:01:18]} 29. Rxe5 {[%emt 0:00:17]} Qb6 {[%emt 0:01:07]} 30. Ra5 {[%emt 0:00:17]} Qb7 {[%emt 0:00:12]} 31. Rf3 {[%emt 0:00:06]} Rd1+ {[%emt 0:00:02]} 32. Kh2 {[%emt 0:00:01]} Rhd8 {[%emt 0:00:01]} 33. Ra2 {[%emt 0:00:00]} R8d3 {[%emt 0:00:50]} 34. Rxd3 {[%emt 0:00:29]} Qxg2+ {[%emt 0:00:02]} 35. Kxg2 {[%emt 0:00:01]} Rxd3 {[%emt 0:00:01]} 36. c4 {[%emt 0:00:05]} Rd4 {[%emt 0:00:06]} 37. Rc2 {[%emt 0:00:01]} Na6 {[%emt 0:00:06]} 38. b5 {[%emt 0:00:34]} Nc5 {[%emt 0:00:01]} 39. Rc3 {[%emt 0:00:09]} Ne4 {[%emt 0:01:06]} 40. Rc1 {[%emt 0:00:06]} Rd3 {[%emt 0:00:04]} 41. c5 {[%emt 0:00:04]} Rxg3+ {[%emt 0:00:06]} 42. Kh2 {[%emt 0:00:03]} Rc3 {[%emt 0:00:04]} 43. Rd1 {[%emt 0:00:09]} Rxc5 {[%emt 0:00:05]} 44. Rd7 {[%emt 0:00:03]} Rc2+ {[%emt 0:00:14]} 45. Kg1 {[%emt 0:00:04]} Rc7 {[%emt 0:00:02]} 0-1

[Event "RUS-ch Men Rapid 2019"]
[Site "Sochi"]
[Date "2019.10.16"]
[Round "9.19"]
[White "Gutenev, Alexander"]
[Black "Gaydym, Arseniy"]
[Result "0-1"]
[ECO "B23"]
[WhiteElo "2469"]
[BlackElo "2139"]
[Annotator "ChessBase"]
[PlyCount "100"]
[EventDate "2019.10.15"]
[EventType "swiss"]
[EventCountry "RUS"]
[SourceTitle "playchess.com"]
[Source "ChessBase"]
[SourceQuality "1"]
[TimeControl "900+10"]

1. e4 {[%emt 0:00:00]} c5 {[%emt 0:00:00]} 2. Nc3 {[%emt 0:00:00]} d6 {[%emt 0:00:00]} 3. d4 {[%emt 0:00:00]} cxd4 {[%emt 0:00:12]} 4. Qxd4 {[%emt 0:00:00]} Nf6 {[%emt 0:00:03]} 5. b3 {[%emt 0:00:01]} Nc6 {[%emt 0:00:12]} 6. Qd2 {[%emt 0:00:01]} g6 {[%emt 0:00:18]} 7. Bb2 {[%emt 0:00:01]} Bg7 {[%emt 0:00:03]} 8. O-O-O {[%emt 0:00:04]} Be6 {[%emt 0:00:58]} 9. Kb1 {[%emt 0:00:07]} Rc8 {[%emt 0:00:46]} 10. f3 {[%emt 0:00:01]} O-O {[%emt 0:00:38]} 11. g4 {[%emt 0:00:06]} Qa5 {[%emt 0:01:23]} 12. Nge2 {[%emt 0:00:42]} b5 {[%emt 0:02:35]} 13. Nf4 {[%emt 0:00:53]} b4 {[%emt 0:01:20]} 14. Nce2 {[%emt 0:00:13]} Rfd8 {[%emt 0:02:15]} 15. Nxe6 {[%emt 0:00:27]} fxe6 {[%emt 0:00:11]} 16. Nf4 {[%emt 0:01:31]} Kf7 {[%emt 0:02:04]} 17. h4 {[%emt 0:03:34]} Ne5 {[%emt 0:00:31]} 18. Qe2 {[%emt 0:01:06]} Rc6 {[%emt 0:01:39]} 19. Bh3 {[%emt 0:00:38]} Ra6 {[%emt 0:00:36]} 20. g5 {[%emt 0:01:12]} Qxa2+ {[%emt 0:00:04]} 21. Kc1 {[%emt 0:00:01]} Nfg4 {[%emt 0:01:33]} 22. Bd4 {[%emt 0:00:38]} Rc8 {[%emt 0:00:40]} 23. Bxg4 {[%emt 0:02:13]} Nxg4 {[%emt 0:00:03]} 24. Bxg7 {[%emt 0:01:00]} Rac6 {[%emt 0:00:02]} 25. Bb2 {[%emt 0:00:43]} Ne3 {[%emt 0:00:40]} 26. Rd2 {[%emt 0:01:28]} Qxb3 {[%emt 0:00:05]} 27. Rh2 {[%emt 0:00:17]} Rxc2+ {[%emt 0:00:11]} 28. Rxc2 {[%emt 0:00:02]} Rxc2+ {[%emt 0:00:02]} 29. Qxc2 {[%emt 0:00:04]} Nxc2 {[%emt 0:00:01]} 30. Rxc2 {[%emt 0:00:05]} Qe3+ {[%emt 0:00:01]} 31. Kd1 {[%emt 0:00:17]} Qxf4 {[%emt 0:00:05]} 32. Ke2 {[%emt 0:00:04]} b3 {[%emt 0:00:16]} 33. Rd2 {[%emt 0:00:06]} Qxh4 {[%emt 0:00:03]} 34. Bd4 {[%emt 0:00:07]} Qxg5 {[%emt 0:00:08]} 35. Kd3 {[%emt 0:00:08]} Qb5+ {[%emt 0:00:05]} 36. Kc3 {[%emt 0:00:02]} b2 {[%emt 0:00:02]} 37. Rxb2 {[%emt 0:00:03]} Qf1 {[%emt 0:00:29]} 38. Rf2 {[%emt 0:00:02]} Qa1+ {[%emt 0:00:08]} 39. Kd3 {[%emt 0:00:01]} Qd1+ {[%emt 0:00:01]} 40. Ke3 {[%emt 0:00:03]} e5 {[%emt 0:00:21]} 41. Bc3 {[%emt 0:00:01]} Qb3 {[%emt 0:00:06]} 42. Kd3 {[%emt 0:00:01]} a5 {[%emt 0:00:12]} 43. Rb2 {[%emt 0:00:06]} Qd1+ {[%emt 0:00:02]} 44. Ke3 {[%emt 0:00:01]} a4 {[%emt 0:00:04]} 45. Rd2 {[%emt 0:00:09]} Qb3 {[%emt 0:00:04]} 46. Rd3 {[%emt 0:00:05]} Qb6+ {[%emt 0:00:27]} 47. Kd2 {[%emt 0:00:04]} Qf2+ {[%emt 0:00:07]} 48. Kc1 {[%emt 0:00:02]} a3 {[%emt 0:00:16]} 49. Bd2 {[%emt 0:00:01]} a2 {[%emt 0:00:19]} 50. Ra3 {[%emt 0:00:00]} Qf1+ {[%emt 0:00:01]} 0-1

[Event "RUS-ch Men Rapid 2019"]
[Site "Sochi"]
[Date "2019.10.16"]
[Round "9.21"]
[White "Savchenko, Boris"]
[Black "Denishev, Marat"]
[Result "1-0"]
[ECO "B50"]
[WhiteElo "2581"]
[BlackElo "2332"]
[Annotator "ChessBase"]
[PlyCount "79"]
[EventDate "2019.10.15"]
[EventType "swiss"]
[EventCountry "RUS"]
[SourceTitle "playchess.com"]
[Source "ChessBase"]
[SourceQuality "1"]
[TimeControl "900+10"]

1. e4 {[%emt 0:00:00]} c5 {[%emt 0:00:01]} 2. Nf3 {[%emt 0:00:00]} d6 {[%emt 0:00:03]} 3. c3 {[%emt 0:00:07]} Nf6 {[%emt 0:00:13]} 4. g3 {[%emt 0:00:02]} g6 {[%emt 0:00:03]} 5. Bg2 {[%emt 0:00:03]} Bg7 {[%emt 0:00:06]} 6. O-O {[%emt 0:00:03]} O-O {[%emt 0:00:05]} 7. Re1 {[%emt 0:00:02]} e5 {[%emt 0:00:25]} 8. a4 {[%emt 0:00:12]} Nc6 {[%emt 0:00:12]} 9. d3 {[%emt 0:00:15]} h6 {[%emt 0:00:56]} 10. Na3 {[%emt 0:00:44]} Be6 {[%emt 0:00:22]} 11. d4 {[%emt 0:03:30]} exd4 {[%emt 0:00:57]} 12. cxd4 {[%emt 0:00:02]} Bg4 {[%emt 0:00:24]} 13. d5 {[%emt 0:01:52]} Nd4 {[%emt 0:01:17]} 14. Qd3 {[%emt 0:01:23]} Bxf3 {[%emt 0:01:42]} 15. Bxf3 {[%emt 0:00:02]} Re8 {[%emt 0:00:57]} 16. Bd2 {[%emt 0:02:21]} Nd7 {[%emt 0:01:32]} 17. Nc4 {[%emt 0:00:32]} Ne5 {[%emt 0:01:33]} 18. Nxe5 {[%emt 0:00:03]} Bxe5 {[%emt 0:00:34]} 19. Bxh6 {[%emt 0:01:28]} Qf6 {[%emt 0:00:14]} 20. Bg2 {[%emt 0:00:09]} g5 {[%emt 0:00:22]} 21. Bxg5 {[%emt 0:00:19]} Qxg5 {[%emt 0:00:02]} 22. f4 {[%emt 0:00:02]} Bxf4 {[%emt 0:00:45]} 23. gxf4 {[%emt 0:00:10]} Qxf4 {[%emt 0:00:01]} 24. b4 {[%emt 0:00:20]} b6 {[%emt 0:00:19]} 25. Re3 {[%emt 0:00:30]} Re5 {[%emt 0:01:02]} 26. Rf1 {[%emt 0:00:07]} Qh6 {[%emt 0:00:47]} 27. Rg3+ {[%emt 0:00:09]} Kf8 {[%emt 0:00:25]} 28. Rh3 {[%emt 0:01:07]} Qg7 {[%emt 0:00:28]} 29. Rh4 {[%emt 0:00:34]} Rg5 {[%emt 0:00:27]} 30. Qh3 {[%emt 0:00:13]} Ke7 {[%emt 0:00:31]} 31. Rh7 {[%emt 0:00:39]} Rxg2+ {[%emt 0:02:18]} 32. Kh1 {[%emt 0:00:03]} Rg8 {[%emt 0:00:37]} 33. Rxg7 {[%emt 0:00:07]} R2xg7 {[%emt 0:00:02]} 34. bxc5 {[%emt 0:00:10]} bxc5 {[%emt 0:00:33]} 35. Rb1 {[%emt 0:00:33]} f5 {[%emt 0:00:23]} 36. exf5 {[%emt 0:02:17]} Kf6 {[%emt 0:00:08]} 37. Re1 {[%emt 0:00:24]} Rg5 {[%emt 0:00:10]} 38. Qh6+ {[%emt 0:00:16]} Kxf5 {[%emt 0:00:05]} 39. Qxd6 {[%emt 0:00:06]} Nf3 {[%emt 0:00:17]} 40. Qe6+ {[%emt 0:00:02]} 1-0

[Event "RUS-ch Men Rapid 2019"]
[Site "Sochi"]
[Date "2019.10.16"]
[Round "9.22"]
[White "Dudin, Gleb"]
[Black "Yuffa, Daniil"]
[Result "1-0"]
[ECO "E73"]
[WhiteElo "2323"]
[BlackElo "2577"]
[Annotator "ChessBase"]
[PlyCount "55"]
[EventDate "2019.10.15"]
[EventType "swiss"]
[EventCountry "RUS"]
[SourceTitle "playchess.com"]
[Source "ChessBase"]
[SourceQuality "1"]
[TimeControl "900+10"]

1. d4 {[%emt 0:00:08]} Nf6 {[%emt 0:00:00]} 2. c4 {[%emt 0:00:01]} g6 {[%emt 0:00:00]} 3. Nc3 {[%emt 0:00:01]} Bg7 {[%emt 0:00:00]} 4. e4 {[%emt 0:00:01]} d6 {[%emt 0:00:00]} 5. Be2 {[%emt 0:00:01]} O-O {[%emt 0:00:00]} 6. Be3 {[%emt 0:00:02]} c5 {[%emt 0:00:00]} 7. e5 {[%emt 0:00:02]} Nfd7 {[%emt 0:00:35]} 8. exd6 {[%emt 0:00:04]} exd6 {[%emt 0:00:06]} 9. Nf3 {[%emt 0:00:06]} Nc6 {[%emt 0:00:07]} 10. O-O {[%emt 0:00:12]} a6 {[%emt 0:00:09]} 11. Qd2 {[%emt 0:00:42]} Re8 {[%emt 0:00:33]} 12. Rad1 {[%emt 0:00:56]} Qa5 {[%emt 0:00:53]} 13. Rfe1 {[%emt 0:01:17]} Nf6 {[%emt 0:00:19]} 14. h3 {[%emt 0:00:50]} Bf5 {[%emt 0:00:47]} 15. b3 {[%emt 0:03:35]} Rad8 {[%emt 0:01:19]} 16. Bf1 {[%emt 0:03:26]} h6 {[%emt 0:01:51]} 17. Qc1 {[%emt 0:02:46]} Kh7 {[%emt 0:00:22]} 18. Na4 {[%emt 0:00:58]} Ne4 {[%emt 0:02:00]} 19. dxc5 {[%emt 0:01:02]} dxc5 {[%emt 0:00:14]} 20. Rd5 {[%emt 0:00:20]} Rxd5 {[%emt 0:00:30]} 21. cxd5 {[%emt 0:00:03]} Nd4 {[%emt 0:00:01]} 22. Nd2 {[%emt 0:00:44]} b5 {[%emt 0:03:59]} 23. Nxe4 {[%emt 0:00:28]} Bxe4 {[%emt 0:00:23]} 24. Nxc5 {[%emt 0:00:18]} Bxd5 {[%emt 0:00:12]} 25. Rd1 {[%emt 0:00:14]} Bf3 {[%emt 0:02:22]} 26. Rxd4 {[%emt 0:00:30]} Bxd4 {[%emt 0:00:19]} 27. Bxd4 {[%emt 0:00:02]} Bd5 {[%emt 0:01:11]} 28. Nd7 1-0

[Event "RUS-ch Men Rapid 2019"]
[Site "Sochi"]
[Date "2019.10.16"]
[Round "9.24"]
[White "Yatzenko, Anton"]
[Black "Vastrukhin, Oleg"]
[Result "1-0"]
[ECO "A40"]
[WhiteElo "2383"]
[BlackElo "2428"]
[Annotator "NA"]
[PlyCount "101"]
[EventDate "2019.10.15"]
[EventType "swiss"]
[EventCountry "RUS"]
[SourceTitle "playchess.com"]
[Source "ChessBase"]
[SourceQuality "1"]
[TimeControl "900+10"]

1. d4 {[%emt 0:00:00]} g6 {[%emt 0:00:00]} 2. Nf3 {[%emt 0:00:00]} Bg7 {[%emt 0:00:00]} 3. c3 {[%emt 0:00:04]} d6 {[%emt 0:00:00]} 4. Bg5 {[%emt 0:00:04]} c6 {[%emt 0:00:35]} 5. Nbd2 {[%emt 0:00:02]} h6 {[%emt 0:00:06]} 6. Bh4 {[%emt 0:00:02]} Nd7 {[%emt 0:00:03]} 7. e4 {[%emt 0:00:05]} Ngf6 {[%emt 0:00:25]} 8. Be2 {[%emt 0:00:02]} O-O {[%emt 0:00:12]} 9. O-O {[%emt 0:00:02]} e5 {[%emt 0:00:20]} 10. dxe5 {[%emt 0:00:03]} dxe5 {[%emt 0:00:03]} 11. Qc2 {[%emt 0:00:01]} Qc7 {[%emt 0:00:25]} 12. a4 {[%emt 0:00:05]} Nh5 {[%emt 0:00:28]} 13. Rfe1 {[%emt 0:00:02]} Nc5 {[%emt 0:00:34]} 14. b4 {[%emt 0:00:06]} Ne6 {[%emt 0:00:03]} 15. Nc4 {[%emt 0:00:04]} Nef4 {[%emt 0:00:14]} 16. Bf1 {[%emt 0:00:03]} Be6 {[%emt 0:00:47]} 17. Ne3 {[%emt 0:00:57]} Bf6 {[%emt 0:01:40]} 18. Bg3 {[%emt 0:00:26]} Rad8 {[%emt 0:00:42]} 19. Rad1 {[%emt 0:00:08]} a5 {[%emt 0:01:20]} 20. Bc4 {[%emt 0:00:08]} Bc8 {[%emt 0:02:36]} 21. Bf1 {[%emt 0:00:02]} axb4 {[%emt 0:01:12]} 22. cxb4 {[%emt 0:00:01]} Ne6 {[%emt 0:00:04]} 23. Nc4 {[%emt 0:00:25]} Nhf4 {[%emt 0:00:12]} 24. a5 {[%emt 0:00:13]} h5 {[%emt 0:00:12]} 25. h3 {[%emt 0:00:09]} Kg7 {[%emt 0:00:38]} 26. Rxd8 {[%emt 0:02:27]} Rxd8 {[%emt 0:00:01]} 27. Rd1 {[%emt 0:00:01]} Rh8 {[%emt 0:01:53]} 28. Nb6 {[%emt 0:01:01]} g5 {[%emt 0:00:18]} 29. b5 {[%emt 0:00:46]} g4 {[%emt 0:00:39]} 30. hxg4 {[%emt 0:00:03]} hxg4 {[%emt 0:00:01]} 31. Nh2 {[%emt 0:00:17]} c5 {[%emt 0:01:32]} 32. Nxg4 {[%emt 0:00:19]} Nd4 {[%emt 0:00:45]} 33. Rxd4 {[%emt 0:00:02]} Bxg4 {[%emt 0:00:01]} 34. Rc4 {[%emt 0:00:28]} Qd6 {[%emt 0:00:33]} 35. Rxc5 {[%emt 0:01:33]} Qd4 {[%emt 0:00:01]} 36. Nd5 {[%emt 0:00:53]} Nxd5 {[%emt 0:00:05]} 37. exd5 {[%emt 0:01:54]} Qa1 {[%emt 0:00:39]} 38. Qc1 {[%emt 0:00:29]} Qxa5 {[%emt 0:01:49]} 39. Bxe5 {[%emt 0:00:01]} Rh5 {[%emt 0:00:02]} 40. Bxf6+ {[%emt 0:00:09]} Kxf6 {[%emt 0:00:01]} 41. Qf4+ {[%emt 0:00:15]} Bf5 {[%emt 0:00:01]} 42. d6 {[%emt 0:00:46]} Qb6 {[%emt 0:00:29]} 43. Qd4+ {[%emt 0:01:02]} Kg6 {[%emt 0:00:08]} 44. Bd3 {[%emt 0:00:54]} f6 {[%emt 0:00:20]} 45. Bxf5+ {[%emt 0:00:08]} Rxf5 {[%emt 0:00:03]} 46. Qg4+ {[%emt 0:00:05]} Rg5 {[%emt 0:00:06]} 47. Rxg5+ {[%emt 0:00:13]} fxg5 {[%emt 0:00:01]} 48. Qe6+ {[%emt 0:00:11]} Kh5 {[%emt 0:00:12]} 49. Qe8+ {[%emt 0:00:09]} Kg4 {[%emt 0:00:14]} 50. d7 {[%emt 0:00:10]} Qc7 {[%emt 0:00:06]} 51. Qc8 {[%emt 0:00:15]} 1-0

[Event "RUS-ch Men Rapid 2019"]
[Site "Sochi"]
[Date "2019.10.16"]
[Round "9.25"]
[White "Belyakov, Bogdan"]
[Black "Gogolev, Artem"]
[Result "0-1"]
[ECO "C44"]
[WhiteElo "2495"]
[BlackElo "2328"]
[Annotator "ChessBase"]
[PlyCount "38"]
[EventDate "2019.10.15"]
[EventType "swiss"]
[EventCountry "RUS"]
[SourceTitle "playchess.com"]
[Source "ChessBase"]
[SourceQuality "1"]
[TimeControl "900+10"]

1. e4 {[%emt 0:00:00]} e5 {[%emt 0:00:03]} 2. Nf3 {[%emt 0:00:00]} Nc6 {[%emt 0:00:03]} 3. c3 {[%emt 0:00:00]} d5 {[%emt 0:00:17]} 4. Qa4 {[%emt 0:00:02]} dxe4 {[%emt 0:01:10]} 5. Nxe5 {[%emt 0:00:03]} Nf6 {[%emt 0:00:57]} 6. Bc4 {[%emt 0:00:48]} Be6 {[%emt 0:00:40]} 7. Nxc6 {[%emt 0:00:10]} bxc6 {[%emt 0:00:19]} 8. Bxe6 {[%emt 0:00:31]} fxe6 {[%emt 0:00:01]} 9. Qxc6+ {[%emt 0:00:02]} Kf7 {[%emt 0:00:01]} 10. O-O {[%emt 0:03:16]} Bd6 {[%emt 0:00:18]} 11. f3 {[%emt 0:01:10]} Rf8 {[%emt 0:00:38]} 12. fxe4 {[%emt 0:00:03]} Kg8 {[%emt 0:01:18]} 13. e5 {[%emt 0:07:01]} Ng4 {[%emt 0:00:12]} 14. Rxf8+ {[%emt 0:00:25]} Qxf8 {[%emt 0:00:07]} 15. Qf3 {[%emt 0:00:02]} Qxf3 {[%emt 0:01:12]} 16. gxf3 {[%emt 0:00:02]} Nxe5 {[%emt 0:00:01]} 17. d4 {[%emt 0:00:17]} Nxf3+ {[%emt 0:00:03]} 18. Kg2 {[%emt 0:00:01]} Ne1+ {[%emt 0:00:02]} 19. Kg1 {[%emt 0:01:03]} Nc2 {[%emt 0:00:03]} 0-1

[Event "RUS-ch Men Rapid 2019"]
[Site "Sochi"]
[Date "2019.10.16"]
[Round "9.27"]
[White "Nazaretyan, Tigran"]
[Black "Shubin, Kirill"]
[Result "0-1"]
[ECO "E12"]
[WhiteElo "2297"]
[BlackElo "2416"]
[Annotator "NA RC"]
[PlyCount "112"]
[EventDate "2019.10.15"]
[EventType "swiss"]
[EventCountry "RUS"]
[SourceTitle "playchess.com"]
[Source "ChessBase"]
[SourceQuality "1"]
[TimeControl "900+10"]

1. d4 e6 2. c4 Nf6 3. Nf3 b6 4. a3 Bb7 5. Nc3 Ne4 6. Nxe4 Bxe4 7. Nd2 Bb7 8. e4 g6 9. Bd3 Bg7 10. Nf3 O-O 11. Bg5 Qe8 12. Qd2 Nc6 13. Bh6 d6 14. h4 f5 15. h5 Qe7 16. hxg6 hxg6 17. exf5 exf5+ 18. Kf1 Rae8 19. c5 d5 20. Re1 Qf6 21. Bg5 Qf7 22. Rxe8 Rxe8 23. b4 Nxd4 24. Nxd4 Bxd4 25. Bb5 bxc5 26. bxc5 Bg7 27. Bxe8 Qxe8 28. Rh3 d4 29. Qa2+ Kf8 30. Bh6 Qe4 31. f3 Ba6+ 32. Kf2 Qe5 33. Bxg7+ Kxg7 34. Qd2 f4 35. Rh1 Qe3+ 36. Qxe3 fxe3+ 37. Ke1 Kf6 38. Rh7 d3 39. Rxc7 d2+ 40. Kd1 Bc4 41. Rd7 Ke5 42. a4 Bb3+ 43. Ke2 Bxa4 44. c6 Bxc6 45. Re7+ Kd4 46. Rxa7 Bb5+ 47. Kd1 g5 48. Ra8 Bc4 49. Ra3 Bg8 50. Ke2 Bc4+ 51. Kd1 Bb5 52. Kc2 Be2 53. Ra4+ Ke5 54. Ra1 Kf4 55. Ra4+ Kg3 56. Rg4+ Kf2 0-1

[Event "RUS-ch Men Rapid 2019"]
[Site "Sochi"]
[Date "2019.10.16"]
[Round "9.28"]
[White "Pogromsky, Mikhail"]
[Black "Usmanov, Ilnur"]
[Result "1-0"]
[ECO "D02"]
[WhiteElo "2411"]
[BlackElo "2144"]
[Annotator "NA"]
[PlyCount "63"]
[EventDate "2019.10.15"]
[EventType "swiss"]
[EventCountry "RUS"]
[SourceTitle "playchess.com"]
[Source "ChessBase"]
[SourceQuality "1"]
[TimeControl "900+10"]

1. Nf3 {[%emt 0:00:00]} d5 {[%emt 0:00:00]} 2. d4 {[%emt 0:00:00]} Nf6 {[%emt 0:00:00]} 3. c4 {[%emt 0:00:12]} c6 {[%emt 0:00:01]} 4. Qc2 {[%emt 0:00:10]} g6 {[%emt 0:00:03]} 5. e3 {[%emt 0:00:26]} Bf5 {[%emt 0:00:50]} 6. Qb3 {[%emt 0:00:22]} Qb6 {[%emt 0:00:17]} 7. Nc3 {[%emt 0:00:19]} Nbd7 {[%emt 0:02:06]} 8. Bd2 {[%emt 0:01:46]} Bg7 {[%emt 0:01:35]} 9. Qxb6 {[%emt 0:03:43]} Nxb6 {[%emt 0:00:36]} 10. cxd5 {[%emt 0:00:53]} Nbxd5 {[%emt 0:02:22]} 11. Nxd5 {[%emt 0:00:05]} Nxd5 {[%emt 0:01:42]} 12. Rc1 {[%emt 0:00:07]} O-O {[%emt 0:00:27]} 13. Bc4 {[%emt 0:00:40]} Rad8 {[%emt 0:01:26]} 14. Ke2 {[%emt 0:00:30]} Bg4 {[%emt 0:00:49]} 15. h3 {[%emt 0:01:33]} Bxf3+ {[%emt 0:00:02]} 16. Kxf3 {[%emt 0:00:06]} e5 {[%emt 0:00:05]} 17. dxe5 {[%emt 0:00:15]} Nb6 {[%emt 0:01:54]} 18. Ba5 {[%emt 0:02:52]} Nxc4 {[%emt 0:00:42]} 19. Rxc4 {[%emt 0:00:01]} Rd5 {[%emt 0:00:03]} 20. Bc3 {[%emt 0:00:01]} Bxe5 {[%emt 0:00:31]} 21. e4 {[%emt 0:02:03]} Rd3+ {[%emt 0:00:19]} 22. Ke2 {[%emt 0:00:05]} Rfd8 {[%emt 0:00:01]} 23. Bxe5 {[%emt 0:00:30]} Rd2+ {[%emt 0:00:01]} 24. Kf3 {[%emt 0:00:12]} R8d3+ {[%emt 0:00:08]} 25. Kg4 {[%emt 0:00:11]} Rxf2 {[%emt 0:00:10]} 26. g3 {[%emt 0:00:19]} f6 {[%emt 0:00:49]} 27. Rd4 {[%emt 0:01:02]} h5+ {[%emt 0:00:57]} 28. Kh4 {[%emt 0:00:02]} Rxd4 {[%emt 0:01:19]} 29. Bxd4 {[%emt 0:00:03]} Rf3 {[%emt 0:00:00]} 30. g4 {[%emt 0:00:25]} g5+ {[%emt 0:00:32]} 31. Kxh5 {[%emt 0:00:02]} Rd3 {[%emt 0:00:01]} 32. Bxf6 {[%emt 0:00:03]} 1-0

[Event "RUS-ch Men Rapid 2019"]
[Site "Sochi"]
[Date "2019.10.16"]
[Round "9.29"]
[White "Ulybin, Mikhail"]
[Black "Kurbedinov, Ramis"]
[Result "1-0"]
[ECO "E06"]
[WhiteElo "2455"]
[BlackElo "2280"]
[Annotator "ChessBase"]
[PlyCount "50"]
[EventDate "2019.10.15"]
[EventType "swiss"]
[EventCountry "RUS"]
[SourceTitle "playchess.com"]
[Source "ChessBase"]
[SourceQuality "1"]
[TimeControl "900+10"]

1. d4 {[%emt 0:00:00]} Nf6 {[%emt 0:00:00]} 2. c4 {[%emt 0:00:05]} e6 {[%emt 0:00:00]} 3. g3 {[%emt 0:00:07]} d5 {[%emt 0:00:10]} 4. Bg2 {[%emt 0:00:08]} Be7 {[%emt 0:00:01]} 5. Nf3 {[%emt 0:00:08]} O-O {[%emt 0:00:04]} 6. O-O {[%emt 0:00:05]} dxc4 {[%emt 0:00:15]} 7. Qc2 {[%emt 0:00:18]} a6 {[%emt 0:00:09]} 8. Qxc4 {[%emt 0:00:11]} b5 {[%emt 0:00:02]} 9. Qc2 {[%emt 0:00:06]} Bb7 {[%emt 0:00:02]} 10. Bd2 {[%emt 0:00:07]} Be4 {[%emt 0:00:49]} 11. Qc1 {[%emt 0:00:06]} Nbd7 {[%emt 0:00:59]} 12. Ba5 {[%emt 0:00:27]} Ra7 {[%emt 0:00:32]} 13. Nbd2 {[%emt 0:00:10]} Bd5 {[%emt 0:00:40]} 14. Re1 {[%emt 0:02:42]} Qa8 {[%emt 0:00:03]} 15. e4 {[%emt 0:00:50]} Bb7 {[%emt 0:01:24]} 16. b4 {[%emt 0:01:29]} Rd8 {[%emt 0:06:40]} 17. Qc3 {[%emt 0:03:36]} Nb8 {[%emt 0:00:35]} 18. Ne5 {[%emt 0:01:20]} Nfd7 {[%emt 0:00:26]} 19. Nb3 {[%emt 0:01:04]} Nxe5 {[%emt 0:00:26]} 20. dxe5 {[%emt 0:00:03]} Nc6 {[%emt 0:00:10]} 21. Rad1 {[%emt 0:01:12]} Rxd1 {[%emt 0:00:49]} 22. Rxd1 {[%emt 0:00:04]} Nxa5 {[%emt 0:00:01]} 23. Nxa5 {[%emt 0:00:15]} Bxe4 {[%emt 0:00:07]} 24. Bxe4 {[%emt 0:00:31]} Qxe4 {[%emt 0:00:01]} 25. Nc6 {[%emt 0:00:05]} Bf8 1-0